bitfinex/quotes_SOLUSD_20230111
["timestamp","ask_amount","ask_price","bid_price","bid_amount"]
[1673472648168,0.96,15.915,15.904,65.73732384]
[1673472649407,17.96,15.915,15.904,48.73732384]
[1673472649612,20.0,15.914,15.902,1.57827347]
[1673472649827,20.0,15.914,15.901,1.57827347]
[1673472649828,13.49,15.91,15.901,1.57827347]
[1673472650051,0.96,15.909,15.897,20.0]
[1673472650266,20.96,15.908,15.898,1.106897]
[1673472650473,17.96,15.907,15.897,20.0]
[1673472650687,0.96,15.906,15.898,1.1168786]
[1673472651201,0.96,15.906,15.897,20.0]
[1673472653533,13.49,15.91,15.897,40.0]
[1673472653742,47.14,15.913,15.898,66.11]
[1673472653934,47.14,15.915,15.899,21.10038513]
[1673472654144,47.14,15.915,15.9,17.0]
[1673472654362,47.14,15.915,15.9,64.18]
[1673472655001,0.96,15.911,15.9,64.18]
[1673472658144,0.96,15.911,15.9,47.18]
[1673472658350,17.96,15.911,15.9,47.18]
[1673472660788,0.96,15.91,15.9,47.18]
[1673472661183,0.96,15.909,15.9,47.18]
[1673472661530,0.96,15.909,15.899,20.0]
[1673472663720,0.96,15.909,15.9,47.18]
[1673472664252,0.96,15.908,15.899,20.0]
[1673472664459,0.96,15.907,15.898,20.0]
[1673472664669,0.96,15.907,15.899,47.18]
[1673472673631,47.14,15.915,15.899,47.18]
[1673472673923,18.92,15.911,15.9,1.09666416]
[1673472674565,18.92,15.911,15.901,47.18]
[1673472674784,18.92,15.911,15.9,1.10773637]
[1673472674992,18.92,15.911,15.901,47.18]
[1673472675202,18.92,15.911,15.9,1.09841279]
[1673472675392,18.92,15.911,15.901,47.18]
[1673472675604,18.92,15.911,15.9,1.09847671]
[1673472675815,17.96,15.911,15.901,47.18]
[1673472676025,47.14,15.915,15.901,1.27327674]
[1673472676237,20.0,15.917,15.902,47.17]
[1673472676466,20.0,15.917,15.901,47.18]
[1673472676673,67.13,15.918,15.902,15.57408273]
[1673472676864,20.0,15.917,15.903,66.09]
[1673472677108,20.0,15.917,15.904,1.17765541]
[1673472677321,20.0,15.917,15.905,47.17]
[1673472677629,20.0,15.917,15.903,18.92]
[1673472677630,20.0,15.917,15.904,47.17]
[1673472677844,20.0,15.917,15.905,18.92]
[1673472678085,1.92,15.916,15.906,47.16]
[1673472678267,20.0,15.917,15.903,47.17]
[1673472678477,20.0,15.917,15.904,18.92]
[1673472678698,20.0,15.917,15.905,47.17]
[1673472678907,20.0,15.917,15.906,17.0]
[1673472679859,325.4577328,15.944,15.906,17.0]
[1673472679860,47.1,15.926,15.908,2.16528555]
[1673472680063,47.1,15.927,15.909,47.15]
[1673472680267,47.1,15.927,15.91,35.38]
[1673472680475,20.0,15.927,15.911,64.15]
[1673472680686,20.0,15.927,15.912,1.92]
[1673472680891,20.0,15.927,15.913,47.14]
[1673472681329,47.1,15.928,15.914,0.96]
[1673472681543,118.6349,15.929,15.913,47.14]
[1673472681731,20.0,15.927,15.913,47.14]
[1673472682588,25.79734,15.927,15.913,47.14]
[1673472682805,25.79734,15.927,15.912,116.5807]
[1673472682806,47.1,15.926,15.912,116.5807]
[1673472683013,20.0,15.925,15.912,116.5807]
[1673472683225,20.0,15.925,15.91,47.15]
[1673472683412,25.79734,15.925,15.909,48.26806821]
[1673472683754,13.44,15.92,15.908,1.38536759]
[1673472684064,18.92,15.919,15.908,1.38536759]
[1673472685107,13.44,15.92,15.908,1.38536759]
[1673472685326,17.0,15.919,15.908,48.54536759]
[1673472685528,17.0,15.919,15.909,20.0]
[1673472685740,13.44,15.92,15.909,21.42954834]
[1673472686062,13.44,15.92,15.909,20.0]
[1673472686269,13.44,15.92,15.908,41.58233302]
[1673472686481,47.11,15.922,15.908,21.58233302]
[1673472686799,47.1,15.926,15.909,48.11]
[1673472687110,47.1,15.926,15.909,50.71814595]
[1673472687532,47.1,15.926,15.909,49.75814595]
[1673472687748,47.11,15.924,15.909,48.79814595]
[1673472687941,20.0,15.923,15.909,1.64814595]
[1673472688147,47.11,15.922,15.909,1.64814595]
[1673472688352,18.92,15.921,15.909,1.64814595]
[1673472689316,18.92,15.921,15.909,18.64814595]
[1673472690376,0.96,15.921,15.909,18.64814595]
[1673472690564,18.92,15.922,15.909,18.64814595]
[1673472692261,18.92,15.922,15.909,1.64814595]
[1673472692681,66.03,15.922,15.909,1.64814595]
[1673472693521,66.03,15.922,15.909,18.64814595]
[1673472694263,66.03,15.922,15.909,1.64814595]
[1673472696353,66.03,15.922,15.909,18.64814595]
[1673472697630,18.92,15.922,15.909,18.64814595]
[1673472697842,47.12,15.921,15.909,18.64814595]
[1673472698033,66.03,15.922,15.909,18.64814595]
[1673472698994,66.03,15.922,15.909,1.64814595]
[1673472702260,20.0,15.921,15.909,1.64814595]
[1673472702453,18.92,15.92,15.909,1.64814595]
[1673472706036,1.92,15.92,15.909,1.64814595]
[1673472707933,0.96,15.92,15.909,18.64814595]
[1673472715830,0.96,15.92,15.909,1.64814595]
[1673472716535,0.96,15.92,15.908,20.0]
[1673472717167,0.96,15.919,15.908,20.0]
[1673472717372,67.11,15.923,15.909,1.19447846]
[1673472717594,20.0,15.923,15.909,47.15]
[1673472718353,0.96,15.922,15.91,18.92]
[1673472719691,0.96,15.921,15.909,48.24801299]
[1673472719906,0.96,15.92,15.909,48.24801299]
[1673472721183,0.96,15.92,15.909,1.16751087]
[1673472728016,0.96,15.92,15.908,67.16]
[1673472728328,0.96,15.92,15.909,1.09312325]
[1673472728642,0.96,15.92,15.908,67.16]
[1673472728844,0.96,15.92,15.909,17.0]
[1673472729058,0.96,15.92,15.909,37.0]
[1673472729251,47.11,15.924,15.909,37.0]
[1673472729469,67.1,15.926,15.91,48.11]
[1673472729680,47.1,15.926,15.91,49.07]
[1673472729990,1297.1,15.927,15.911,17.0]
[1673472730199,1297.1,15.927,15.912,156.3689]
[1673472730848,18.92,15.926,15.912,156.3689]
[1673472732206,5.79734,15.925,15.912,109.2289]
[1673472732428,20.0,15.923,15.912,109.2289]
[1673472732732,20.0,15.923,15.909,47.15]
[1673472733051,20.0,15.921,15.908,67.16]
[1673472733240,17.96,15.92,15.908,67.16]
[1673472733447,18.92,15.92,15.908,67.16]
[1673472734610,18.42,15.92,15.908,67.16]
[1673472734821,17.96,15.92,15.908,67.16]
[1673472736727,5.79734,15.923,15.909,0.96]
[1673472736944,67.11,15.925,15.91,47.15]
[1673472737897,20.0,15.925,15.91,47.15]
[1673472738091,13.49,15.92,15.909,47.15]
[1673472738506,13.49,15.92,15.908,67.16]
[1673472738944,18.92,15.919,15.908,67.16]
[1673472740412,47.11,15.922,15.909,1.92]
[1673472740621,47.11,15.925,15.91,47.15]
[1673472740943,17.0,15.924,15.91,47.15]
[1673472741150,17.0,15.925,15.91,47.15]
[1673472742295,47.1,15.926,15.911,1.92]
[1673472742508,561.8249,15.929,15.913,20.0]
[1673472742730,561.8249,15.929,15.914,47.14]
[1673472743259,47.09,15.929,15.914,47.14]
[1673472743462,13.37,15.93,15.915,35.56224243]
[1673472743678,13.37,15.93,15.916,68.13]
[1673472743987,13.37,15.93,15.918,1.0]
[1673472744831,18.92,15.929,15.918,1.0]
[1673472746600,20.0,15.927,15.915,1.0]
[1673472746833,18.92,15.926,15.915,1.0]
[1673472747025,47.11,15.925,15.915,1.0]
[1673472747241,18.92,15.924,15.915,1.0]
[1673472747863,17.0,15.923,15.915,1.0]
[1673472748074,1.92,15.922,15.915,1.0]
[1673472749875,1.92,15.922,15.913,1.0]
[1673472750190,13.42,15.92,15.913,1.0]
[1673472750402,1268.92,15.919,15.913,1.0]
[1673472750604,1268.92,15.919,15.903,162.6617]
[1673472750605,67.13,15.918,15.903,162.6617]
[1673472750804,18.92,15.917,15.903,115.4917]
[1673472751551,18.92,15.917,15.904,163.7507]
[1673472752716,20.0,15.916,15.904,163.7507]
[1673472752902,18.92,15.915,15.904,116.5807]
[1673472757864,17.96,15.915,15.904,116.5807]
[1673472758071,67.13,15.918,15.905,20.0]
[1673472758286,1270.0,15.918,15.905,67.16]
[1673472759112,1270.0,15.918,15.905,47.16]
[1673472759430,18.92,15.917,15.905,47.16]
[1673472763760,20.0,15.916,15.905,47.16]
[1673472763971,20.0,15.916,15.904,116.5807]
[1673472763972,18.92,15.915,15.904,163.7507]
[1673472764915,17.0,15.914,15.904,163.7507]
[1673472765110,0.96,15.913,15.904,163.7507]
[1673472765322,1.92,15.915,15.904,163.7507]
[1673472765533,0.96,15.915,15.904,163.7507]
[1673472765743,1270.0,15.918,15.905,20.0]
[1673472766058,18.92,15.917,15.906,47.16]
[1673472767227,18.92,15.917,15.905,47.16]
[1673472770595,17.0,15.917,15.905,47.16]
[1673472770919,17.0,15.917,15.905,67.16]
[1673472771954,0.96,15.916,15.906,20.0]
[1673472772164,1270.0,15.918,15.906,20.0]
[1673472772479,1270.0,15.918,15.905,47.16]
[1673472773757,20.0,15.917,15.905,47.16]
[1673472774281,18.92,15.916,15.904,116.5807]
[1673472774491,47.14,15.915,15.904,116.5807]
[1673472774804,18.92,15.914,15.904,116.5807]
[1673472775019,1.92,15.914,15.904,116.5807]
[1673472779834,1.92,15.914,15.9,47.18]
[1673472780259,21.92,15.914,15.9,47.18]
[1673472780483,17.0,15.913,15.9,47.18]
[1673472780675,0.96,15.912,15.9,47.18]
[1673472780886,0.96,15.911,15.9,47.18]
[1673472781097,0.96,15.91,15.9,47.18]
[1673472781426,0.96,15.909,15.9,47.18]
[1673472785845,0.96,15.909,15.9,67.18]
[1673472786251,0.96,15.909,15.9,47.18]
[1673472786788,0.96,15.909,15.9,46.68]
[1673472787208,17.0,15.913,15.9,46.68]
[1673472787425,1.92,15.912,15.9,46.68]
[1673472788048,7.71734,15.912,15.9,46.68]
[1673472788256,13.48,15.91,15.899,119.3737]
[1673472788470,18.92,15.909,15.899,119.3737]
[1673472789400,18.92,15.909,15.9,47.18]
[1673472789929,18.92,15.909,15.899,119.3737]
[1673472790353,18.92,15.909,15.897,47.19]
[1673472790562,18.92,15.909,15.898,20.0]
[1673472790972,18.92,15.909,15.899,47.18]
[1673472795093,17.0,15.909,15.899,47.18]
[1673472795300,13.48,15.91,15.899,47.18]
[1673472796232,13.48,15.91,15.893,108.9064]
[1673472796233,5.79187,15.909,15.897,47.19]
[1673472796447,20.0,15.907,15.894,47.2]
[1673472796657,25.79187,15.907,15.894,47.2]
[1673472796873,17.96,15.906,15.894,47.2]
[1673472797084,0.96,15.905,15.894,47.2]
[1673472797299,0.96,15.904,15.894,47.2]
[1673472797513,0.96,15.903,15.894,47.2]
[1673472797710,0.96,15.902,15.894,47.2]
[1673472800141,13.48,15.9,15.894,47.2]
[1673472800352,13.48,15.9,15.893,108.9064]
[1673472800543,1.92,15.899,15.893,108.9064]
[1673472803800,13.48,15.9,15.893,108.9064]
[1673472804017,20.0,15.906,15.893,108.9064]
[1673472804434,20.0,15.906,15.894,47.2]
[1673472804847,5.79187,15.907,15.894,47.2]
[1673472805069,20.0,15.906,15.894,47.2]
[1673472805277,18.92,15.905,15.893,108.9064]
[1673472805698,18.92,15.905,15.894,47.2]
[1673472808221,13.42,15.9,15.894,47.2]
[1673472808456,24.71187,15.899,15.887,47.22]
[1673472808654,20.0,15.898,15.887,47.22]
[1673472808979,20.0,15.898,15.885,47.22]
[1673472808980,20.0,15.896,15.885,47.22]
[1673472809292,17.96,15.895,15.884,113.957]
[1673472809505,13.42,15.89,15.881,47.24]
[1673472809699,13.42,15.89,15.88,109.4677]
[1673472809700,18.92,15.889,15.88,109.4677]
[1673472810107,18.92,15.889,15.875,47.25]
[1673472811695,18.92,15.889,15.876,20.0]
[1673472811905,18.92,15.889,15.877,47.25]
[1673472812114,18.92,15.889,15.878,20.0]
[1673472812341,18.92,15.889,15.879,44.74]
[1673472813601,24.71187,15.889,15.879,44.74]
[1673472813787,40.0,15.888,15.875,47.25]
[1673472814001,24.71187,15.887,15.874,47.26]
[1673472814210,5.79187,15.886,15.874,47.26]
[1673472814443,18.92,15.885,15.874,47.26]
[1673472814657,24.71187,15.885,15.874,47.26]
[1673472815490,24.71187,15.885,15.873,156.9913]
[1673472815687,20.0,15.884,15.873,109.7313]
[1673472815896,18.92,15.883,15.873,109.7313]
[1673472816442,18.92,15.883,15.872,109.0592]
[1673472816846,53.01187,15.885,15.872,109.0592]
[1673472817061,5.79187,15.885,15.873,47.26]
[1673472818418,67.21,15.889,15.873,47.26]
[1673472818731,45.79187,15.888,15.873,47.26]
[1673472819150,45.79187,15.888,15.874,38.92]
[1673472819361,45.79187,15.888,15.875,47.25]
[1673472819792,45.79187,15.888,15.872,109.0592]
[1673472819793,45.79187,15.888,15.873,47.26]
[1673472820433,18.92,15.887,15.873,47.26]
[1673472822531,18.92,15.887,15.869,109.9404]
[1673472822532,13.48,15.88,15.869,109.9404]
[1673472822857,18.92,15.879,15.869,109.9404]
[1673472825381,1.92,15.879,15.869,109.9404]
[1673472825578,18.92,15.879,15.869,109.9404]
[1673472828518,18.92,15.879,15.867,47.28]
[1673472828749,18.92,15.879,15.864,112.4585]
[1673472828750,45.79187,15.878,15.864,112.4585]
[1673472828949,17.96,15.877,15.864,112.4585]
[1673472829271,0.96,15.876,15.864,112.4585]
[1673472829468,0.96,15.875,15.864,112.4585]
[1673472829680,0.96,15.874,15.864,112.4585]
[1673472829893,0.96,15.873,15.864,112.4585]
[1673472830215,0.96,15.872,15.864,112.4585]
[1673472837673,0.96,15.873,15.864,112.4585]
[1673472837870,73.04187,15.878,15.866,20.0]
[1673472838081,13.58,15.88,15.867,67.28]
[1673472838308,13.58,15.88,15.868,20.0]
[1673472838515,13.58,15.88,15.869,67.27]
[1673472839233,17.0,15.879,15.869,67.27]
[1673472840396,1.92,15.878,15.869,67.27]
[1673472840607,1.92,15.878,15.869,20.0]
[1673472840820,1.92,15.878,15.868,20.0]
[1673472841029,1.92,15.878,15.869,47.27]
[1673472841461,1.92,15.878,15.868,20.0]
[1673472842386,1.92,15.878,15.867,20.0]
[1673472842613,20.0,15.885,15.868,65.03814709]
[1673472842806,20.0,15.885,15.869,20.0]
[1673472843017,5.79187,15.885,15.871,20.0]
[1673472843340,5.79187,15.885,15.872,162.7561]
[1673472843545,5.79187,15.885,15.872,115.4961]
[1673472843972,18.92,15.884,15.872,115.4961]
[1673472845565,25.79187,15.883,15.872,115.4961]
[1673472845769,7.71187,15.882,15.872,115.4961]
[1673472846837,13.42,15.88,15.872,115.4961]
[1673472847027,1.92,15.879,15.866,47.28]
[1673472847234,21.92,15.879,15.866,47.28]
[1673472848734,17.0,15.878,15.866,47.28]
[1673472848940,21.92,15.877,15.866,47.28]
[1673472854297,27.71187,15.877,15.864,112.4585]
[1673472854512,13.36,15.87,15.862,114.8607]
[1673472854916,1.92,15.869,15.862,114.8607]
[1673472855563,1.92,15.869,15.857,47.31]
[1673472855775,1.92,15.869,15.858,20.0]
[1673472857568,1.92,15.869,15.858,40.0]
[1673472857787,1.92,15.869,15.859,47.3]
[1673472858726,1.92,15.869,15.858,87.3]
[1673472858937,1.92,15.869,15.858,67.3]
[1673472860402,0.96,15.869,15.858,67.3]
[1673472860617,47.26,15.872,15.858,67.3]
[1673472860618,47.26,15.874,15.859,17.3360547]
[1673472860828,5.79187,15.873,15.86,47.3]
[1673472861266,5.79187,15.873,15.859,47.3]
[1673472861791,0.96,15.872,15.859,47.3]
[1673472861996,1.92,15.872,15.859,47.3]
[1673472863252,1.92,15.872,15.86,20.0]
[1673472865256,1.92,15.872,15.859,47.3]
[1673472866817,13.48,15.87,15.859,47.3]
[1673472867031,1.92,15.869,15.859,47.3]
[1673472869355,18.92,15.869,15.859,47.3]
[1673472871341,13.48,15.87,15.861,20.0]
[1673472871543,5.79187,15.873,15.861,20.0]
[1673472871753,5.79187,15.873,15.862,47.29]
[1673472872723,18.92,15.872,15.862,47.29]
[1673472874504,0.96,15.872,15.862,47.29]
[1673472874717,5.79187,15.873,15.863,20.0]
[1673472875032,67.25,15.877,15.863,20.0]
[1673472875033,20.0,15.877,15.865,20.0]
[1673472875247,20.0,15.879,15.866,47.28]
[1673472876194,25.79187,15.879,15.865,47.28]
[1673472877331,18.92,15.878,15.865,67.28]
[1673472877542,20.0,15.877,15.865,67.28]
[1673472877764,18.92,15.876,15.865,67.28]
[1673472879023,18.92,15.876,15.865,47.28]
[1673472879437,1.92,15.876,15.865,47.28]
[1673472880606,1.92,15.876,15.865,67.28]
[1673472880810,0.96,15.876,15.866,37.0]
[1673472881034,0.96,15.876,15.868,20.0]
[1673472881341,47.22,15.887,15.87,20.0]
[1673472881656,5.79187,15.886,15.871,47.27]
[1673472881972,5.79187,15.886,15.872,37.0]
[1673472882157,5.79187,15.886,15.873,47.26]
[1673472883418,18.92,15.885,15.873,47.26]
[1673472883649,0.96,15.885,15.873,47.26]
[1673472883851,0.96,15.885,15.874,20.0]
[1673472885094,5.79187,15.886,15.874,20.0]
[1673472885312,67.2,15.892,15.875,64.25]
[1673472885524,38.92,15.889,15.876,20.0]
[1673472886369,21.92,15.889,15.876,20.0]
[1673472887867,17.0,15.888,15.876,20.0]
[1673472888092,20.96,15.887,15.876,20.0]
[1673472890816,20.96,15.887,15.877,47.25]
[1673472891842,17.0,15.886,15.877,47.25]
[1673472892052,1.92,15.885,15.875,47.25]
[1673472892798,0.96,15.885,15.874,67.26]
[1673472895207,0.96,15.885,15.874,47.26]
[1673472895412,0.96,15.884,15.873,47.26]
[1673472895641,0.96,15.883,15.873,47.26]
[1673472895843,0.96,15.882,15.873,47.26]
[1673472897422,0.96,15.881,15.873,47.26]
[1673472897841,0.96,15.88,15.873,47.26]
[1673472898050,0.96,15.88,15.872,118.3259]
[1673472898461,0.96,15.88,15.873,47.26]
[1673472899211,0.96,15.88,15.872,118.3259]
[1673472899629,0.96,15.88,15.873,47.26]
[1673472900030,0.96,15.88,15.872,118.3259]
[1673472904074,61.62,15.88,15.865,65.23336687]
[1673472904267,20.96,15.879,15.865,17.95336687]
[1673472904477,65.21,15.878,15.862,47.29]
[1673472904798,20.0,15.876,15.862,47.29]
[1673472904997,18.92,15.875,15.862,47.29]
[1673472905419,17.0,15.874,15.862,47.29]
[1673472905646,1.92,15.873,15.862,47.29]
[1673472905845,1.92,15.875,15.862,47.29]
[1673472908270,1.92,15.875,15.864,105.8619]
[1673472909108,1.92,15.875,15.864,105.78953426]
[1673472910459,1.92,15.875,15.864,153.07953426]
[1673472910673,1.92,15.875,15.865,20.0]
[1673472911095,1.92,15.875,15.864,153.07953426]
[1673472911311,21.92,15.875,15.864,105.78953426]
[1673472911517,17.0,15.874,15.864,105.78953426]
[1673472911720,1.92,15.873,15.864,105.78953426]
[1673472915616,1.92,15.873,15.862,47.29]
[1673472915846,7.71187,15.873,15.862,47.29]
[1673472916163,13.48,15.87,15.861,118.1176]
[1673472916479,18.92,15.869,15.861,118.1176]
[1673472917941,0.96,15.869,15.861,118.1176]
[1673472918159,5.79187,15.872,15.862,20.0]
[1673472918362,18.92,15.871,15.862,20.0]
[1673472918576,18.92,15.871,15.861,118.1176]
[1673472919084,1.92,15.871,15.861,118.1176]
[1673472920475,1.92,15.871,15.862,47.29]
[1673472921815,1.92,15.871,15.861,118.1176]
[1673472925523,67.25,15.876,15.862,20.0]
[1673472925524,47.25,15.876,15.862,20.0]
[1673472925850,5.79187,15.876,15.862,67.29]
[1673472926683,5.79187,15.875,15.862,47.29]
[1673472926996,18.92,15.874,15.859,47.3]
[1673472927203,13.48,15.87,15.858,47.3]
[1673472927419,18.92,15.869,15.859,20.0]
[1673472929614,1.92,15.869,15.86,20.0]
[1673472929940,1.92,15.869,15.861,47.3]
[1673472930466,1.92,15.869,15.86,67.3]
[1673472931631,1.92,15.869,15.86,47.3]
[1673472931941,18.92,15.869,15.859,20.0]
[1673472933933,18.92,15.869,15.86,20.0]
[1673472934143,1.92,15.869,15.86,20.0]
[1673472934347,1.92,15.869,15.86,67.3]
[1673472934567,0.96,15.869,15.86,67.3]
[1673472934776,13.48,15.87,15.86,67.3]
[1673472936019,5.79187,15.873,15.86,67.3]
[1673472936228,1.92,15.872,15.86,67.3]
[1673472944037,1.92,15.872,15.861,17.0]
[1673472944339,1.92,15.872,15.862,47.29]
[1673472945699,1.92,15.872,15.859,20.0]
[1673472946118,1.92,15.872,15.859,40.0]
[1673472946642,1.92,15.872,15.86,47.3]
[1673472950893,13.42,15.87,15.858,47.3]
[1673472951088,17.96,15.869,15.857,47.31]
[1673472951303,0.96,15.868,15.857,47.31]
[1673472951512,0.96,15.867,15.857,47.31]
[1673472951833,0.96,15.866,15.857,47.31]
[1673472952473,0.96,15.865,15.856,112.4585]
[1673472954262,0.96,15.864,15.856,112.4585]
[1673472955918,20.0,15.869,15.856,112.4585]
[1673472956148,20.0,15.869,15.857,47.31]
[1673472957194,20.0,15.869,15.856,112.4585]
[1673472957418,1.92,15.868,15.856,112.4585]
[1673472957627,18.92,15.868,15.856,112.4585]
[1673472957839,20.0,15.867,15.856,112.4585]
[1673472958051,18.92,15.866,15.856,112.4585]
[1673472961507,20.0,15.867,15.857,47.31]
[1673472961744,20.0,15.869,15.858,20.0]
[1673472962149,5.79187,15.87,15.86,20.0]
[1673472962380,111.7071,15.875,15.861,47.3]
[1673472962675,47.25,15.878,15.861,47.3]
[1673472962778,20.0,15.877,15.862,19.87336687]
[1673472963132,20.0,15.877,15.864,20.0]
[1673472963435,20.0,15.877,15.865,64.28]
[1673472964356,1.92,15.876,15.865,64.28]
[1673472967724,20.0,15.877,15.865,64.28]
[1673472967935,20.0,15.877,15.866,1.92]
[1673472968142,20.0,15.879,15.867,47.28]
[1673472968457,1.92,15.878,15.867,47.28]
[1673472968775,1.92,15.878,15.868,40.0]
[1673472968977,1.92,15.878,15.869,47.27]
[1673472973302,47.23,15.884,15.869,47.27]
[1673472973507,18.92,15.882,15.869,47.27]
[1673472973744,13.41,15.88,15.869,47.27]
[1673472974042,18.92,15.879,15.868,20.0]
[1673472974218,24.71187,15.879,15.868,20.0]
[1673472974459,24.71187,15.879,15.867,67.28]
[1673472974916,24.71187,15.879,15.868,20.0]
[1673472977544,1.92,15.879,15.869,47.27]
[1673472977945,1.92,15.879,15.87,20.0]
[1673472980319,1.92,15.879,15.869,47.27]
[1673472980529,18.92,15.879,15.867,67.28]
[1673472986948,17.96,15.879,15.867,67.28]
[1673472987259,17.0,15.879,15.868,20.0]
[1673472987468,17.0,15.879,15.869,20.0]
[1673472988298,1.92,15.878,15.869,20.0]
[1673472989343,1.92,15.878,15.867,67.28]
[1673472989547,21.92,15.878,15.865,47.28]
[1673472989753,22.79187,15.877,15.864,112.5447]
[1673472990072,1.92,15.876,15.864,112.5447]
[1673472990598,21.92,15.876,15.864,112.5447]
[1673472990807,17.0,15.875,15.864,112.5447]
[1673472991016,1.92,15.874,15.864,112.5447]
[1673472991542,1.92,15.874,15.862,47.29]
[1673472991744,53.05187,15.873,15.858,47.3]
[1673472991956,24.71187,15.872,15.859,20.0]
[1673472992276,5.79187,15.871,15.859,20.0]
[1673472992516,18.92,15.87,15.859,20.0]
[1673472993006,32.46,15.87,15.859,20.0]
[1673472998924,32.46,15.87,15.858,20.0]
[1673473001438,32.46,15.87,15.859,47.3]
[1673473001843,13.54,15.87,15.859,47.3]
[1673473002056,13.54,15.87,15.86,20.0]
[1673473003861,13.54,15.87,15.859,20.0]
[1673473004170,13.54,15.87,15.858,67.3]
[1673473004388,13.54,15.87,15.859,17.0]
[1673473006278,13.54,15.87,15.858,67.3]
[1673473006484,1.92,15.869,15.858,20.0]
[1673473007013,1.92,15.869,15.858,40.0]
[1673473008807,1.92,15.869,15.858,20.0]
[1673473009016,18.92,15.869,15.858,20.0]
[1673473011013,1.92,15.869,15.859,47.3]
[1673473011330,1.92,15.869,15.858,67.3]
[1673473011517,1.92,15.869,15.856,232.0278]
[1673473011518,47.27,15.868,15.856,112.4585]
[1673473011735,43.75187,15.867,15.856,112.4585]
[1673473011943,0.96,15.866,15.856,112.4585]
[1673473012154,0.96,15.865,15.856,112.4585]
[1673473012363,0.96,15.864,15.856,112.4585]
[1673473012673,0.96,15.863,15.856,112.4585]
[1673473012887,0.96,15.862,15.856,112.4585]
[1673473014456,17.0,15.865,15.856,112.4585]
[1673473014668,1.92,15.864,15.856,112.4585]
[1673473016056,1.92,15.864,15.851,160.6605]
[1673473016253,1.92,15.864,15.851,113.3305]
[1673473016254,47.29,15.863,15.851,113.3305]
[1673473016466,18.92,15.862,15.851,113.3305]
[1673473018250,1.92,15.862,15.851,113.3305]